bitfinex/quotes_BTCUSD_20250421
["timestamp","ask_amount","ask_price","bid_price","bid_amount"]
[1745203041247,0.09984432,87135.0,87134.0,0.1138]
[1745203041450,0.21929223,87135.0,87134.0,0.1138]
[1745203041617,0.21929223,87135.0,87134.0,0.11883799]
[1745203041811,0.21929223,87135.0,87134.0,0.1138]
[1745203043602,0.58435539,87135.0,87134.0,0.1138]
[1745203043796,0.58148609,87135.0,87134.0,0.1138]
[1745203045593,0.59602694,87135.0,87134.0,0.1138]
[1745203046715,0.59702694,87135.0,87134.0,0.1138]
[1745203046927,0.64402694,87135.0,87134.0,0.1138]
[1745203050838,0.64502694,87135.0,87134.0,0.1138]
[1745203051077,0.64302694,87135.0,87134.0,0.1138]
[1745203051282,0.64502694,87135.0,87134.0,0.1138]
[1745203052620,0.01454085,87134.0,87118.0,0.0194598]
[1745203052829,0.11944791,87129.0,87119.0,0.11384]
[1745203053031,0.04758475,87120.0,87119.0,0.11384]
[1745203053255,0.16703266,87120.0,87119.0,0.11384]
[1745203053454,0.16703266,87120.0,87119.0,0.11926155]
[1745203053684,0.16703266,87120.0,87119.0,0.11925796]
[1745203054398,0.16693707,87120.0,87119.0,0.11925796]
[1745203056410,0.16782734,87120.0,87119.0,0.11925796]
[1745203056612,0.16782734,87120.0,87119.0,0.00541796]
[1745203056853,0.16782734,87120.0,87119.0,0.11376]
[1745203057358,0.5781905,87120.0,87119.0,0.11376]
[1745203057612,0.6255905,87120.0,87119.0,0.11376]
[1745203059878,0.6256305,87120.0,87119.0,0.11376]
[1745203062867,0.09397943,87111.0,87110.0,0.98268]
[1745203063066,0.04748916,87098.0,87057.0,0.19555862]
[1745203063269,0.04748916,87098.0,87058.0,0.14760939]
[1745203063557,0.001,87100.0,87059.0,0.01454085]
[1745203063558,0.04748916,87094.0,87059.0,0.01454085]
[1745203063732,0.04748916,87094.0,87080.0,0.25001868]
[1745203063985,0.04748916,87094.0,87081.0,0.00101408]
[1745203064316,0.04748916,87093.0,87081.0,0.00101408]
[1745203065462,0.04748916,87093.0,87082.0,1.09652]
[1745203065790,0.04752916,87093.0,87083.0,0.00101409]
[1745203066615,0.04752916,87093.0,87084.0,0.00534322]
[1745203066887,0.04752916,87093.0,87085.0,0.00101409]
[1745203067129,0.04752916,87093.0,87084.0,0.00534322]
[1745203067303,4e-05,87093.0,87083.0,0.34]
[1745203067504,4e-05,87093.0,87085.0,0.00534322]
[1745203067705,4e-05,87093.0,87084.0,0.00543034]
[1745203067913,4e-05,87093.0,87083.0,0.34]
[1745203068045,4e-05,87093.0,87085.0,0.00543034]
[1745203068244,4e-05,87093.0,87083.0,0.33744424]
[1745203068901,4e-05,87093.0,87084.0,0.00543034]
[1745203069960,4e-05,87093.0,87085.0,0.15221136]
[1745203070191,4e-05,87093.0,87086.0,0.00442428]
[1745203070415,0.36506316,87110.0,87086.0,0.00442428]
[1745203070416,0.36506316,87110.0,87087.0,0.13398876]
[1745203070591,0.36506316,87110.0,87100.0,0.25001868]
[1745203070775,0.00013574,87111.0,87101.0,0.00443699]
[1745203071393,0.00013574,87111.0,87090.0,0.25001868]
[1745203071594,0.04748916,87109.0,87102.0,0.00443022]
[1745203071790,0.04748916,87109.0,87091.0,0.11376]
[1745203072032,0.04748916,87109.0,87092.0,0.00442304]
[1745203072222,0.04748916,87108.0,87092.0,0.00442304]
[1745203074197,0.04752916,87108.0,87094.0,0.34]
[1745203074523,4e-05,87108.0,87095.0,0.00445167]
[1745203074802,0.04752916,87108.0,87095.0,0.00445167]
[1745203075131,0.11944791,87107.0,87095.0,0.00445167]
[1745203075303,0.001,87104.0,87095.0,0.00445167]
[1745203075506,0.12044791,87104.0,87095.0,0.00445167]
[1745203075705,0.00286992,87107.0,87095.0,0.00445167]
[1745203076037,0.04752916,87108.0,87098.0,0.34]
[1745203076387,0.04752916,87108.0,87099.0,0.00446733]
[1745203076572,0.16784791,87107.0,87099.0,0.00446733]
[1745203077466,0.16784791,87107.0,87100.0,0.11376]
[1745203077718,0.16784791,87107.0,87101.0,0.00446828]
[1745203078773,0.04748916,87103.0,87101.0,0.00446828]
[1745203080655,0.16693707,87103.0,87101.0,0.00446828]
[1745203080855,0.16793707,87102.0,87101.0,0.00446828]
[1745203081087,0.16793707,87102.0,87100.0,0.11376]
[1745203081413,0.09398916,87101.0,87100.0,0.11376]
[1745203081558,0.21343707,87101.0,87100.0,0.11376]
[1745203084700,0.62470023,87101.0,87100.0,0.11376]
[1745203084911,0.62470023,87101.0,87100.0,0.11830342]
[1745203085999,0.62470023,87101.0,87100.0,0.00454342]
[1745203086131,0.62470023,87101.0,87100.0,0.11376]
[1745203086341,0.50425232,87101.0,87100.0,0.11844369]
[1745203086646,0.50425232,87101.0,87100.0,0.11836369]
[1745203087454,0.62470023,87101.0,87100.0,0.11836369]
[1745203091088,0.62474023,87101.0,87100.0,0.11836369]
[1745203092120,0.57725107,87101.0,87100.0,0.11836369]
[1745203092368,0.62474023,87101.0,87100.0,0.11836369]
[1745203101677,0.62474023,87101.0,87100.0,0.11840369]
[1745203102793,0.62474023,87101.0,87100.0,0.00468369]
[1745203102997,0.62474023,87101.0,87100.0,0.11372]
[1745203103197,0.62474023,87101.0,87100.0,0.11850913]
[1745203103545,0.62474023,87101.0,87100.0,0.12999013]
[1745203104231,0.62574023,87101.0,87100.0,0.01627013]
[1745203104532,0.64028108,87101.0,87100.0,0.12999013]
[1745203104703,0.64028108,87101.0,87100.0,0.125201]
[1745203104912,0.64028108,87101.0,87100.0,0.13002774]
[1745203108947,0.64028108,87101.0,87100.0,0.01630774]
[1745203109183,0.15493001,87096.0,87095.0,1.09648]
[1745203109405,0.27724872,87096.0,87095.0,1.09648]
[1745203109631,0.27437792,87096.0,87095.0,1.09648]
[1745203110451,0.27437792,87096.0,87083.0,0.001]
[1745203110452,0.04848916,87084.0,87083.0,0.001]
[1745203110652,0.63944108,87084.0,87083.0,0.11472]
[1745203110809,0.64144108,87084.0,87083.0,0.11372]
[1745203111010,0.62690023,87084.0,87083.0,0.11372]
[1745203113178,0.63557503,87084.0,87083.0,0.11372]
[1745203114170,0.65011588,87084.0,87083.0,0.11372]
[1745203115496,0.99011588,87084.0,87083.0,0.11372]
[1745203116698,0.99015588,87084.0,87083.0,0.11372]
[1745203117305,0.65015588,87084.0,87083.0,0.11372]
[1745203117911,0.65015588,87084.0,87057.0,1.00120707]
[1745203117912,0.04848916,87060.0,87057.0,0.01808707]
[1745203118107,0.04848916,87060.0,87050.0,7e-05]
[1745203118108,0.04848916,87051.0,87050.0,7e-05]
[1745203118333,0.04848916,87051.0,87050.0,0.00052368]
[1745203118334,0.16693707,87051.0,87050.0,0.00052368]
[1745203118536,0.16675463,87051.0,87050.0,0.00052368]
[1745203119331,0.04730672,87051.0,87050.0,0.11416368]
[1745203119527,0.04730672,87051.0,87050.0,0.13670841]
[1745203120644,0.16675463,87051.0,87050.0,0.47670841]
[1745203120842,0.16675463,87051.0,87050.0,0.11364]
[1745203121222,0.16675463,87051.0,87050.0,0.13663399]
[1745203121942,0.16679463,87051.0,87050.0,0.13663399]
[1745203123759,0.04734672,87051.0,87050.0,0.13663399]
[1745203123960,4e-05,87051.0,87050.0,0.15293399]
[1745203125308,4e-05,87051.0,87050.0,1.13621399]
[1745203125515,4e-05,87051.0,87050.0,1.09796]
[1745203126526,4e-05,87051.0,87050.0,1.12058641]
[1745203127287,4e-05,87051.0,87050.0,1.46058641]
[1745203127893,4e-05,87051.0,87050.0,1.34694641]
[1745203128104,4e-05,87051.0,87050.0,1.46058641]
[1745203142120,4e-05,87051.0,87050.0,1.12058641]
[1745203145442,4e-05,87051.0,87050.0,1.09692]
[1745203146177,0.0459,87058.0,87050.0,1.09692]
[1745203146336,0.0489,87058.0,87050.0,1.09692]
[1745203148273,0.0489,87058.0,87050.0,1.11939382]
[1745203153207,0.04830672,87055.0,87050.0,1.11939382]
[1745203154925,0.12044791,87054.0,87050.0,1.11939382]
[1745203155172,0.09520672,87051.0,87050.0,1.11939382]
[1745203155373,0.21465463,87051.0,87050.0,1.11939382]
[1745203155576,0.26075463,87051.0,87050.0,1.11939382]
[1745203156722,0.26175463,87051.0,87050.0,1.45939382]
[1745203157125,0.25675463,87051.0,87050.0,1.11939382]
[1745203157326,0.2565944,87051.0,87050.0,1.11939382]
[1745203157852,0.0471,87051.0,87050.0,1.11939382]
[1745203158827,0.001,87051.0,87050.0,1.45939382]
[1745203160240,0.0474,87051.0,87050.0,1.45927382]
[1745203160791,0.0962,87051.0,87050.0,1.45927382]
[1745203161154,0.0962,87051.0,87050.0,1.00575382]
[1745203161361,0.21564791,87051.0,87050.0,1.11927382]
[1745203162284,0.0962,87051.0,87050.0,1.11927382]
[1745203163678,0.0958,87051.0,87050.0,1.11927382]
[1745203166808,0.58031107,87051.0,87050.0,1.11927382]
[1745203167641,0.58031107,87051.0,87050.0,1.0968]
[1745203167840,0.58031107,87051.0,87050.0,0.98328]
[1745203168045,0.58031107,87051.0,87050.0,1.0968]
[1745203169514,0.01454085,87047.0,87026.0,0.04981929]
[1745203169716,0.0941,87039.0,87027.0,0.11352]
[1745203169890,0.12232066,87038.0,87027.0,0.11352]
[1745203170072,0.11944791,87038.0,87027.0,0.11352]
[1745203170597,0.00287254,87037.0,87027.0,0.13580204]
[1745203170829,0.11944791,87036.0,87027.0,0.13580204]
[1745203171009,0.00287263,87035.0,87027.0,0.02228204]
[1745203171173,0.21354791,87034.0,87026.0,0.04981929]
[1745203171374,0.00287275,87033.0,87026.0,0.04981929]
[1745203171762,0.11944791,87032.0,87027.0,0.11356]
[1745203171888,0.00287274,87031.0,87027.0,0.11356]
[1745203172090,0.11944791,87030.0,87027.0,0.11356]
[1745203172302,0.00287274,87029.0,87027.0,0.11356]
[1745203172500,0.48451107,87028.0,87027.0,0.11356]
[1745203174829,0.48451107,87028.0,87026.0,0.07303553]
[1745203175025,0.53151107,87028.0,87027.0,0.11356]
[1745203177317,0.53151107,87028.0,87026.0,0.07303553]
[1745203177503,0.16644791,87028.0,87027.0,0.11356]
[1745203177715,0.21724791,87028.0,87027.0,0.11356]
[1745203178818,0.0978,87028.0,87027.0,0.11356]
[1745203179020,0.001,87028.0,87027.0,0.11356]
[1745203183747,0.001,87028.0,87027.0,1.09708]
[1745203183942,0.001,87028.0,87027.0,1.21652791]
[1745203184312,0.05,87044.0,87027.0,1.21852791]
[1745203184463,0.05,87044.0,87028.0,0.11944791]
[1745203186707,0.05,87044.0,87029.0,0.0013]
[1745203186876,0.05,87044.0,87030.0,0.11944791]
[1745203188635,0.095,87053.0,87031.0,0.34]
[1745203188867,0.095,87053.0,87033.0,0.34]
[1745203188868,0.05,87053.0,87033.0,0.34]
[1745203189000,0.05,87053.0,87035.0,0.34]
[1745203189201,0.05,87053.0,87037.0,0.34]
[1745203189431,0.05,87053.0,87037.0,0.45944791]
[1745203190878,0.05,87053.0,87039.0,0.34]
[1745203191127,0.05,87053.0,87041.0,0.34]
[1745203191281,0.05,87053.0,87041.0,0.45944791]
[1745203192559,0.05,87053.0,87029.0,0.0013]
[1745203192759,0.05,87053.0,87030.0,0.11944791]
[1745203192985,0.05,87053.0,87031.0,0.1134]
[1745203193304,0.05,87053.0,87032.0,0.11944791]
[1745203196715,0.05,87052.0,87032.0,0.11944791]
[1745203196920,0.0475,87050.0,87032.0,0.11944791]
[1745203197540,0.0453,87049.0,87032.0,0.11944791]
[1745203197928,0.0453,87049.0,87033.0,0.1134]
[1745203199422,0.05,87045.0,87033.0,0.1134]
[1745203200133,0.051,87045.0,87034.0,1.09684]
[1745203202034,0.051,87045.0,87035.0,0.11944791]
[1745203202692,0.35249724,87049.0,87036.0,0.34]
[1745203203004,0.35249724,87049.0,87038.0,0.34]
[1745203203005,0.34513745,87049.0,87038.0,0.34]
[1745203203243,0.29253745,87049.0,87040.0,0.34]
[1745203203447,0.29253745,87049.0,87042.0,0.34]
[1745203203629,0.29253745,87049.0,87044.0,0.34]
[1745203204947,0.0475,87056.0,87044.0,0.34]
[1745203205378,0.0475,87056.0,87043.0,0.11944791]
[1745203205379,0.0475,87056.0,87046.0,0.34]
[1745203205783,0.0475,87056.0,87048.0,0.34]
[1745203208128,0.0453,87059.0,87049.0,0.11944791]
[1745203208282,0.001,87075.0,87049.0,0.11944791]
[1745203208283,0.0452,87071.0,87049.0,0.11944791]
[1745203208483,0.0371483,87071.0,87049.0,0.11944791]
[1745203208660,0.0371483,87071.0,87051.0,0.13398876]
[1745203208893,0.02395212,87083.0,87051.0,0.13398876]
[1745203209122,0.11580953,87082.0,87051.0,0.13398876]
[1745203209532,0.000885,87084.0,87061.0,0.35454085]
[1745203209683,0.02395212,87091.0,87063.0,0.35454085]
[1745203210077,0.000846,87093.0,87066.0,0.01454085]
[1745203210275,0.000846,87093.0,87068.0,0.3859]
[1745203210433,0.000846,87093.0,87070.0,0.34]
[1745203210633,0.000846,87093.0,87072.0,0.34]
[1745203210858,0.000846,87093.0,87074.0,0.34]
[1745203211070,0.000846,87093.0,87076.0,0.34]
[1745203211299,0.000846,87093.0,87069.0,0.1132]
[1745203211300,0.000846,87093.0,87078.0,0.34]
[1745203211497,0.000846,87093.0,87080.0,0.34]
[1745203211734,0.000846,87093.0,87082.0,0.34]
[1745203211916,0.000846,87093.0,87084.0,0.34]
[1745203212123,0.00098171,87093.0,87086.0,0.34]
[1745203212431,0.00098171,87093.0,87088.0,0.34]
[1745203212620,0.00098171,87093.0,87090.0,0.34]
[1745203212835,0.00098171,87093.0,87092.0,0.34]
[1745203213385,0.004,87099.0,87092.0,0.36781288]
[1745203214577,0.004,87099.0,87093.0,0.11944791]
[1745203214924,0.02395212,87107.0,87093.0,0.11944791]
[1745203214925,0.02395212,87116.0,87093.0,0.11944791]
[1745203217078,0.0452,87113.0,87093.0,0.11944791]
[1745203218544,0.02395212,87116.0,87094.0,0.01454085]
[1745203218745,0.0452,87124.0,87094.0,0.13398876]
[1745203218964,0.00013589,87120.0,87094.0,0.13398876]
[1745203219740,0.00013589,87120.0,87095.0,0.11944791]
[1745203221680,0.00013589,87120.0,87097.0,0.01454085]
[1745203222002,0.00013589,87120.0,87098.0,0.11944791]
[1745203222964,0.03833589,87124.0,87098.0,0.11944791]
[1745203223169,0.03833589,87124.0,87098.0,0.1195838]
[1745203224986,0.03833589,87124.0,87099.0,0.01454085]
[1745203225198,0.03833589,87124.0,87100.0,0.11944791]
[1745203231376,0.03833589,87124.0,87101.0,0.00874175]
[1745203231571,0.03833589,87124.0,87102.0,0.11944791]
[1745203231988,0.03833589,87124.0,87103.0,0.00851753]
[1745203232201,0.03833589,87124.0,87104.0,0.11944791]
[1745203232832,0.03833589,87124.0,87105.0,0.00851753]
[1745203233035,0.03833589,87124.0,87106.0,0.11944791]
[1745203233661,0.03833589,87124.0,87107.0,0.00851753]
[1745203233878,0.0965,87120.0,87107.0,0.12163753]
[1745203234080,0.0498,87118.0,87107.0,0.12163753]
[1745203234479,0.0498,87118.0,87107.0,0.11312]
[1745203234836,0.0498,87118.0,87108.0,0.00847698]
[1745203235771,0.0498,87118.0,87109.0,0.11312]
[1745203236337,0.0498,87118.0,87110.0,0.00847698]
[1745203238310,0.04984,87118.0,87111.0,0.11312]
[1745203238469,0.04984,87118.0,87111.0,0.12159698]
[1745203241318,0.04984,87118.0,87112.0,0.98256]
[1745203242005,0.04984,87118.0,87113.0,0.00847698]
[1745203248847,0.0492,87117.0,87114.0,0.11296]
[1745203249049,0.0492,87117.0,87098.0,0.00013589]
[1745203249050,0.001,87114.0,87099.0,0.98256]
[1745203249247,0.0482,87110.0,87101.0,0.34]
[1745203249611,0.0482,87110.0,87102.0,0.00854965]
[1745203250449,0.0499,87103.0,87102.0,0.00854965]
[1745203250655,0.16834791,87103.0,87100.0,0.11296]
[1745203250859,0.0489,87103.0,87102.0,0.00858608]
[1745203251071,0.0489,87103.0,87101.0,0.34]
[1745203251280,0.0489,87103.0,87102.0,0.00858972]
[1745203251845,0.0959,87103.0,87102.0,0.00858972]
[1745203252793,0.09594,87103.0,87102.0,0.00858972]
[1745203255939,0.08894,87103.0,87102.0,0.00858972]
[1745203260670,0.29253745,87115.0,87102.0,0.00858972]
[1745203262912,0.29253745,87115.0,87104.0,0.34]
[1745203263381,0.29253745,87115.0,87105.0,0.00874985]
[1745203263633,0.28553745,87115.0,87105.0,0.00874985]
[1745203263911,0.0953,87114.0,87105.0,0.00874985]
[1745203264830,0.09185741,87110.0,87105.0,0.00874985]
[1745203265052,0.001,87106.0,87105.0,0.00874985]
[1745203265277,0.12044791,87106.0,87105.0,0.00874985]
[1745203265521,0.12044791,87106.0,87103.0,0.11296]
[1745203265719,0.12231811,87105.0,87103.0,0.11296]
[1745203265991,0.12224413,87105.0,87104.0,0.00873472]
[1745203266205,0.12222543,87105.0,87104.0,0.00873472]
[1745203266432,0.50206288,87105.0,87046.0,0.06873]
[1745203266659,0.50206288,87105.0,87078.0,0.00013571]
[1745203266660,0.0464,87104.0,87078.0,0.00013571]
[1745203266889,0.40785578,87103.0,87079.0,0.11296]
[1745203267109,0.00287042,87102.0,87079.0,0.11296]
[1745203267317,0.11944791,87101.0,87079.0,0.11296]
[1745203267530,0.00287042,87100.0,87079.0,0.11296]
[1745203267744,0.11944791,87099.0,87079.0,0.11296]
[1745203268430,0.00287042,87098.0,87080.0,0.34]
[1745203268558,0.11944791,87099.0,87080.0,0.34]
[1745203269518,0.11944791,87099.0,87081.0,0.00802616]
[1745203269701,0.11948791,87099.0,87081.0,0.00802616]
[1745203269904,0.11948791,87099.0,87082.0,0.00072743]
[1745203270498,4e-05,87099.0,87082.0,0.00072743]
[1745203270701,4e-05,87099.0,87083.0,0.11944791]
[1745203273958,0.28553745,87103.0,87083.0,0.11944791]
[1745203274288,4e-05,87115.0,87083.0,0.11944791]
[1745203274289,0.0464,87109.0,87084.0,0.01454085]
[1745203274470,0.0464,87109.0,87086.0,0.01454085]
[1745203274694,0.0464,87114.0,87087.0,0.11944791]
[1745203277628,0.0464,87114.0,87088.0,0.34076607]
[1745203277829,0.0464,87114.0,87090.0,0.34]
[1745203278081,0.0464,87114.0,87088.0,0.00076607]
[1745203278082,0.04644,87114.0,87092.0,0.34]
[1745203278389,0.04644,87114.0,87094.0,0.34]
[1745203278867,0.04644,87114.0,87093.0,0.12822977]
[1745203278868,0.0474,87107.0,87093.0,0.00076607]
[1745203279058,0.0469,87106.0,87095.0,0.00071707]
[1745203279282,0.0469,87106.0,87094.0,0.00072015]
[1745203279513,0.0469,87106.0,87096.0,0.00071912]
[1745203279739,0.0469,87106.0,87091.0,0.98272]
[1745203279960,0.0469,87106.0,87097.0,0.00874009]
[1745203280176,0.0469,87106.0,87098.0,0.00874009]
[1745203280370,0.0469,87106.0,87091.0,0.98272]
[1745203280601,0.0469,87106.0,87092.0,0.00874009]
[1745203281313,0.0399,87106.0,87092.0,0.00874009]
[1745203282133,0.03994,87106.0,87092.0,0.00874009]
[1745203282622,0.001,87101.0,87092.0,0.00874009]
[1745203282847,0.0484,87100.0,87092.0,0.00874009]
[1745203283050,0.0484,87100.0,87092.0,0.34874009]
[1745203285740,0.03798447,87100.0,87092.0,0.34874009]
[1745203286602,0.001,87096.0,87092.0,0.00874009]
[1745203286817,0.001,87100.0,87092.0,0.00874009]
[1745203286818,0.001,87093.0,87092.0,0.00874009]
[1745203287026,0.16764791,87093.0,87092.0,0.12154009]
[1745203287235,0.45318536,87093.0,87092.0,0.12154009]
[1745203287462,0.45318536,87093.0,87092.0,0.1128]
[1745203288042,0.45318536,87093.0,87092.0,0.11889648]
[1745203288674,0.50158536,87093.0,87092.0,0.1128]
[1745203288812,0.50158536,87093.0,87092.0,0.11802762]
[1745203289261,0.50158536,87093.0,87092.0,0.1128]
[1745203289477,0.50162536,87093.0,87092.0,0.11715636]
[1745203289825,0.50162536,87093.0,87092.0,0.1128]
[1745203290743,0.001,87084.0,87083.0,0.001]
[1745203290928,0.0472,87083.0,87078.0,0.00013571]
[1745203291137,0.0484,87081.0,87078.0,0.00013571]
[1745203291346,0.0966,87079.0,87078.0,0.00013571]
[1745203291549,0.21604791,87079.0,87078.0,0.00013571]
[1745203291957,0.23346033,87079.0,87078.0,0.00013571]
[1745203292976,0.51899778,87079.0,87078.0,0.00013571]
[1745203293183,0.0956,87055.0,87029.0,0.0454]
[1745203293390,0.0956,87055.0,87052.0,0.00055784]
[1745203294979,0.09550233,87055.0,87052.0,0.00055784]
[1745203295430,0.09550233,87055.0,87053.0,0.11284]
[1745203295832,0.09550233,87055.0,87054.0,0.00176836]
[1745203296051,0.21595024,87055.0,87054.0,0.00176836]
[1745203296255,0.50148769,87055.0,87054.0,0.00176836]
[1745203296688,0.50152769,87055.0,87054.0,0.00176836]
[1745203297092,0.0479,87054.0,87052.0,0.11339784]
[1745203297307,0.18576084,87053.0,87052.0,0.11339784]
[1745203297947,0.23246084,87053.0,87052.0,0.11339784]
[1745203299705,0.23246084,87053.0,87052.0,0.00055784]
[1745203299916,0.23250084,87053.0,87052.0,0.11339784]
[1745203300377,0.51803829,87053.0,87044.0,0.000422]
[1745203300519,0.11014085,87045.0,87044.0,0.000422]
[1745203300753,0.23246142,87045.0,87044.0,0.000422]
[1745203301190,0.23246142,87045.0,87044.0,0.00316844]
[1745203301514,0.21792057,87045.0,87044.0,0.00316844]
[1745203304513,0.50345802,87045.0,87044.0,0.00316844]
[1745203304714,0.50058536,87045.0,87044.0,0.00316844]
[1745203305145,0.51503005,87045.0,87044.0,0.00316844]
[1745203306258,0.51507005,87045.0,87044.0,0.00316844]
[1745203307010,0.5005292,87045.0,87044.0,0.00316844]
[1745203307690,0.5005292,87045.0,87044.0,0.00567152]
[1745203313782,0.4526292,87045.0,87044.0,0.00567152]
[1745203314032,0.28557745,87045.0,87044.0,0.113142]
[1745203314413,0.28557745,87045.0,87044.0,0.45837892]
[1745203314635,4e-05,87045.0,87044.0,0.45937892]
[1745203316881,4e-05,87045.0,87044.0,0.34665892]
[1745203317128,4e-05,87045.0,87044.0,0.45937892]
[1745203323388,0.00094384,87045.0,87044.0,0.45937892]
[1745203324041,0.28235339,87052.0,87044.0,0.45937892]
[1745203324250,0.12222354,87051.0,87044.0,0.45937892]
[1745203325218,0.28235339,87050.0,87044.0,0.45937892]
[1745203325387,0.12219665,87049.0,87044.0,0.45937892]
[1745203326477,0.12224188,87049.0,87044.0,0.45937892]
[1745203327424,0.12224188,87049.0,87044.0,0.11937892]
[1745203327625,0.0924,87048.0,87044.0,0.11937892]
[1745203327866,0.12216976,87047.0,87044.0,0.11937892]
[1745203330129,0.11944791,87047.0,87045.0,0.11272]
[1745203330309,0.12044791,87047.0,87045.0,0.1169947]
[1745203330950,0.28235339,87046.0,87045.0,0.1169947]
[1745203331149,0.4018013,87046.0,87045.0,0.1169947]
[1745203333105,0.4952013,87046.0,87045.0,0.1169947]
[1745203333311,0.50974215,87046.0,87045.0,0.1169947]
[1745203333538,0.50974215,87046.0,87045.0,0.11272]
[1745203333789,0.50974215,87046.0,87045.0,0.11475824]
[1745203334014,0.50974215,87046.0,87045.0,0.11705236]
[1745203335788,0.50974215,87046.0,87045.0,0.00433236]
[1745203335994,0.4952013,87046.0,87045.0,0.11252]
[1745203336198,0.4952013,87046.0,87045.0,0.11683408]
[1745203338149,0.4952013,87046.0,87045.0,0.11252]
[1745203342223,0.50974215,87046.0,87045.0,0.11252]
[1745203343457,0.46474215,87046.0,87045.0,0.11252]
[1745203344028,0.51214215,87046.0,87045.0,0.11252]
[1745203344859,0.25020804,87040.0,87026.0,0.04517259]
[1745203345096,0.0474,87036.0,87027.0,0.11252]
[1745203345293,0.0474,87034.0,87027.0,0.11252]
[1745203345569,0.12219665,87033.0,87027.0,0.11252]
[1745203345769,0.048,87031.0,87027.0,0.11252]
[1745203345970,0.12219665,87030.0,87027.0,0.11252]
[1745203347293,0.18138876,87029.0,87027.0,0.11252]
[1745203347496,0.01728959,87028.0,87027.0,0.11252]
[1745203347704,0.41909089,87028.0,87027.0,0.11252]
[1745203348008,0.4157945,87028.0,87027.0,0.11252]
[1745203349435,0.41571792,87028.0,87027.0,0.11252]
[1745203351105,0.41671792,87028.0,87027.0,0.11252]
[1745203353073,0.4028013,87028.0,87027.0,0.11252]
[1745203353510,0.0914,87026.0,87009.0,0.0004226]
[1745203353712,0.39104298,87025.0,87024.0,0.01149108]
[1745203353934,0.38829424,87025.0,87024.0,0.01149108]
[1745203354171,0.37375339,87025.0,87024.0,0.01149108]
[1745203354358,0.37375339,87025.0,87024.0,0.12405108]
[1745203354600,0.0914,87025.0,87024.0,0.12405108]
[1745203354716,0.09414874,87025.0,87024.0,0.12405108]
[1745203354925,0.0914,87025.0,87024.0,0.01149108]
[1745203355158,0.00274874,87027.0,87024.0,0.12861108]
[1745203355354,0.12144791,87028.0,87024.0,0.12861108]
[1745203355961,0.11944791,87027.0,87024.0,0.12861108]
[1745203356166,0.05,87026.0,87025.0,1.10084]
[1745203356444,0.051,87026.0,87025.0,1.10084]
[1745203357534,0.001,87026.0,87025.0,1.10084]
[1745203357709,0.051,87026.0,87025.0,1.10084]
[1745203358734,0.051,87026.0,87025.0,1.44084]
[1745203360128,0.051,87026.0,87025.0,0.98372]
[1745203360129,0.34721349,87026.0,87025.0,0.98372]
[1745203360329,0.34721349,87026.0,87025.0,1.1084]
[1745203360330,0.34434066,87026.0,87025.0,1.1084]
[1745203360610,0.21894791,87026.0,87025.0,1.1084]
[1745203360806,0.22182087,87026.0,87025.0,1.11051166]
[1745203361009,0.26682087,87026.0,87025.0,1.11051166]
[1745203361209,0.26394791,87026.0,87025.0,1.11051166]
[1745203361642,0.58224819,87026.0,87025.0,0.98583166]
[1745203361932,0.5929507,87026.0,87025.0,1.11051166]
[1745203362412,0.60173184,87026.0,87025.0,1.11051166]
[1745203363877,0.5803258,87026.0,87025.0,1.11051166]
[1745203364648,0.56962329,87026.0,87025.0,1.11051166]
[1745203367421,0.1445,87010.0,87009.0,1.02896536]
[1745203367620,0.26394791,87010.0,87009.0,1.10856]
[1745203368667,0.26394791,87010.0,87009.0,1.10901248]
[1745203369656,0.26394791,87010.0,87009.0,1.0307472]
[1745203369861,0.17044791,87010.0,87009.0,1.1554672]
[1745203372030,0.45068964,87010.0,87009.0,1.1554672]
[1745203375552,0.45068964,87010.0,87009.0,1.15712285]
[1745203377940,0.0997,86991.0,86990.0,0.0004227]
[1745203378140,0.0997,86991.0,86974.0,0.0004227]
[1745203378141,0.001,86978.0,86974.0,0.0004227]
[1745203378338,0.001,86977.0,86975.0,0.1366]
[1745203378543,0.001,86977.0,86976.0,0.4766]
[1745203378752,0.00091333,86982.0,86976.0,0.48012486]
[1745203378958,0.05,86983.0,86977.0,0.00070125]
[1745203379165,0.24893731,86991.0,86977.0,0.034644]
[1745203379362,0.24602398,86991.0,86978.0,0.12295316]
[1745203379824,0.05,86998.0,86980.0,0.34]
[1745203380013,0.05091333,86998.0,86982.0,0.34]
[1745203380216,0.05091333,86998.0,86983.0,0.00421338]
[1745203380619,0.05091333,86998.0,86985.0,0.34]
[1745203380867,0.05091333,86998.0,86986.0,0.00354204]
[1745203381294,0.05,86998.0,86988.0,0.34]
[1745203381492,0.24602398,87003.0,86989.0,0.00070007]
[1745203381723,0.05,86998.0,86989.0,0.00351321]
[1745203381904,0.00091333,86997.0,86989.0,0.00351321]
[1745203382035,0.05091333,86990.0,86989.0,0.00351321]
[1745203382243,0.17036124,86990.0,86989.0,0.00351321]
[1745203382697,0.17036124,86990.0,86987.0,0.1366]
[1745203382847,0.12232191,86989.0,86987.0,0.1366]
[1745203383048,0.11944791,86989.0,86987.0,0.1366]
[1745203383251,0.05375682,86988.0,86987.0,0.1366]
[1745203383459,0.17320473,86988.0,86987.0,0.1366]
[1745203383659,0.41922871,86988.0,86987.0,0.1366]
[1745203383861,0.41635471,86988.0,86987.0,0.1366]
[1745203386820,0.05088282,86975.0,86974.0,0.04863254]
[1745203387111,0.21683073,86975.0,86974.0,0.20637484]
[1745203387303,0.21671494,86975.0,86974.0,0.20637484]
[1745203387749,0.21671494,86975.0,86974.0,0.20491254]
[1745203387972,0.21671494,86975.0,86974.0,0.20648227]
[1745203388442,0.50789648,86975.0,86974.0,0.1594085]
[1745203389735,0.50757615,86975.0,86974.0,0.1594085]
[1745203389960,0.522117,86975.0,86974.0,0.1594085]
[1745203390114,0.522117,86975.0,86974.0,0.15783877]
[1745203390522,0.522117,86975.0,86971.0,0.04735833]
[1745203390523,0.06484511,86972.0,86971.0,0.04735833]
[1745203390723,0.18716795,86972.0,86971.0,0.15628]
[1745203390957,0.23366795,86972.0,86971.0,0.15628]
[1745203391603,0.2191271,86972.0,86971.0,0.15628]
[1745203391811,0.05030426,86968.0,86964.0,0.01084711]
[1745203392021,0.05030426,86968.0,86908.0,0.06377417]
[1745203392022,0.05,86953.0,86915.0,0.01454085]
[1745203392277,0.05,86953.0,86945.0,0.15698294]